[Event "EYCC O18-ch 2024"]
[Site "Prague"]
[Date "2024.08.31"]
[Round "9.18"]
[White "Garcia Fernandez, Victor"]
[Black "Engin, Onur Cinar"]
[Result "0-1"]
[ECO "D10"]
[WhiteElo "2313"]
[BlackElo "2215"]
[Annotator "RC"]
[PlyCount "92"]
[EventDate "2024.08.19"]
[EventType "swiss"]
[EventCountry "CZE"]
[SourceTitle "playchess.com"]
[Source "ChessBase"]
[SourceQuality "1"]
[TimeControl "5400+30"]

1. d4 {[%emt 0:00:02]} d5 {[%emt 0:00:06]} 2. c4 {[%emt 0:00:04]} c6 {[%emt 0:00:04]} 3. cxd5 {[%emt 0:00:16]} cxd5 {[%emt 0:00:08]} 4. Nc3 {[%emt 0:00:04]} Nf6 {[%emt 0:00:11]} 5. Nf3 {[%emt 0:00:05]} Nc6 {[%emt 0:00:20]} 6. Ne5 {[%emt 0:00:06]} Bd7 {[%emt 0:05:21]} 7. e3 {[%emt 0:00:41]} e6 {[%emt 0:01:34]} 8. f4 {[%emt 0:00:27]} Nxe5 {[%emt 0:08:40]} 9. fxe5 {[%emt 0:01:04]} Ne4 {[%emt 0:00:08]} 10. Nxe4 {[%emt 0:03:31]} dxe4 {[%emt 0:01:06]} 11. Be2 {[%emt 0:00:27]} Qh4+ {[%emt 0:02:07]} 12. g3 {[%emt 0:00:34]} Qh3 {[%emt 0:00:38]} 13. Bf1 {[%emt 0:00:45]} Qf5 {[%emt 0:08:03]} 14. Bg2 {[%emt 0:00:47]} Bc6 {[%emt 0:00:57]} 15. Bd2 {[%emt 0:01:24]} Be7 {[%emt 0:08:09]} 16. Qe2 {[%emt 0:04:22]} Rc8 {[%emt 0:01:15]} 17. Rc1 {[%emt 0:03:16]} O-O {[%emt 0:02:50]} 18. Qf2 {[%emt 0:00:48]} Qxf2+ {[%emt 0:09:13]} 19. Kxf2 {[%emt 0:00:01]} f6 {[%emt 0:01:06]} 20. exf6 {[%emt 0:00:52]} Bxf6 {[%emt 0:03:56]} 21. Ke1 {[%emt 0:03:04]} Bd5 {[%emt 0:04:34]} 22. Rxc8 {[%emt 0:17:46]} Rxc8 {[%emt 0:00:58]} 23. Bc3 {[%emt 0:00:05]} Bg5 {[%emt 0:01:25]} 24. Ke2 {[%emt 0:13:38]} b5 {[%emt 0:05:08]} 25. a3 {[%emt 0:07:18]} Rf8 {[%emt 0:04:02]} 26. Bd2 {[%emt 0:03:41]} Bc4+ {[%emt 0:02:43]} 27. Ke1 {[%emt 0:00:16]} Bd5 {[%emt 0:03:36]} 28. h4 {[%emt 0:00:41]} Be7 {[%emt 0:01:23]} 29. Bf1 {[%emt 0:13:01]} Bd6 {[%emt 0:04:43]} 30. Rg1 {[%emt 0:01:26]} Rf3 {[%emt 0:01:45]} 31. Bxb5 {[%emt 0:01:33]} Bxg3+ {[%emt 0:00:37]} 32. Ke2 {[%emt 0:00:34]} Bxh4 {[%emt 0:00:35]} 33. a4 {[%emt 0:00:48]} Rh3 {[%emt 0:03:00]} 34. Kf1 {[%emt 0:06:15]} h6 {[%emt 0:03:59]} 35. Be2 {[%emt 0:00:53]} Rf3+ {[%emt 0:04:59]} 36. Bxf3 {[%emt 0:01:13]} exf3 {[%emt 0:00:06]} 37. Rh1 {[%emt 0:00:57]} Bc4+ {[%emt 0:00:14]} 38. Kg1 {[%emt 0:00:06]} f2+ {[%emt 0:00:04]} 39. Kh2 {[%emt 0:00:47]} f1=Q {[%emt 0:00:13]} 40. Rxf1 {[%emt 0:00:04]} Bxf1 {[%emt 0:00:11]} 41. b4 {[%emt 0:00:55]} a6 {[%emt 0:00:43]} 42. e4 {[%emt 0:00:30]} Bf2 {[%emt 0:00:30]} 43. Bc3 {[%emt 0:00:44]} g5 {[%emt 0:00:50]} 44. d5 {[%emt 0:01:04]} exd5 {[%emt 0:00:10]} 45. exd5 {[%emt 0:00:12]} h5 {[%emt 0:00:58]} 46. Be5 {[%emt 0:01:27]} h4 {[%emt 0:00:59]} 0-1